bitfinex/quotes_BTCUSD_20251205
["timestamp","ask_amount","ask_price","bid_price","bid_amount"]
[1764976539909,0.0002,89200.0,89199.0,0.06330847]
[1764976540992,0.22441524,89200.0,89199.0,0.06330847]
[1764976541405,0.0002,89200.0,89199.0,0.06330847]
[1764976541754,0.0002,89200.0,89199.0,0.06492134]
[1764976542165,0.00120211,89200.0,89199.0,0.06492134]
[1764976542862,0.00120211,89200.0,89199.0,0.2891391]
[1764976543489,0.00120211,89200.0,89199.0,0.06492134]
[1764976543687,0.00120211,89200.0,89199.0,0.2891391]
[1764976544185,0.00120211,89200.0,89199.0,0.06492134]
[1764976544383,0.00120211,89200.0,89199.0,0.2891391]
[1764976544814,0.00120211,89200.0,89199.0,0.06492134]
[1764976545416,0.00120211,89200.0,89199.0,0.02574134]
[1764976545616,0.00120211,89200.0,89199.0,0.06492134]
[1764976545782,0.00120211,89200.0,89199.0,0.2891391]
[1764976545985,0.00120211,89200.0,89199.0,0.2851391]
[1764976546183,0.00120211,89200.0,89199.0,0.2841391]
[1764976546411,0.00120211,89200.0,89199.0,0.2861391]
[1764976547076,0.00120211,89200.0,89199.0,0.06192134]
[1764976547458,0.22541735,89200.0,89199.0,0.06192134]
[1764976548279,0.00120211,89200.0,89199.0,0.06192134]
[1764976548481,0.00120211,89200.0,89199.0,0.2861391]
[1764976549422,0.00120211,89200.0,89199.0,0.30844807]
[1764976551353,0.00120211,89200.0,89199.0,0.2861391]
[1764976551555,0.00120211,89200.0,89199.0,0.06192134]
[1764976552931,0.22541735,89200.0,89199.0,0.06192134]
[1764976555308,0.00120211,89200.0,89199.0,0.2861391]
[1764976555775,0.00120211,89200.0,89199.0,0.30844807]
[1764976556526,0.00120211,89200.0,89199.0,0.2861391]
[1764976556734,0.00120211,89200.0,89199.0,0.30844807]
[1764976561576,0.00120211,89200.0,89199.0,0.30744807]
[1764976562034,0.00120211,89200.0,89199.0,0.30844807]
[1764976562485,0.00120211,89200.0,89199.0,0.30744807]
[1764976563948,0.00120211,89200.0,89199.0,0.31044807]
[1764976567272,0.00120211,89200.0,89199.0,0.2881391]
[1764976567942,0.22541735,89200.0,89199.0,0.06392134]
[1764976568164,0.22541735,89200.0,89199.0,0.06092134]
[1764976568435,0.22423787,89191.0,89190.0,0.01071]
[1764976568633,0.22423583,89192.0,89191.0,0.02431]
[1764976568793,0.22423583,89192.0,89191.0,0.05578142]
[1764976569133,0.22423583,89192.0,89191.0,0.07121142]
[1764976569754,0.22423583,89192.0,89191.0,0.03147142]
[1764976569898,0.22423787,89191.0,89190.0,0.01071]
[1764976570466,0.22423787,89191.0,89190.0,0.01271]
[1764976570662,0.22423787,89191.0,89190.0,0.01371]
[1764976572004,0.26444787,89191.0,89190.0,0.003]
[1764976573256,0.26444787,89191.0,89190.0,0.001]
[1764976573670,0.2242605,89182.0,89181.0,0.01071]
[1764976573875,0.2242605,89182.0,89181.0,0.06462852]
[1764976574438,0.2242605,89182.0,89181.0,0.01071]
[1764976575293,0.22426553,89180.0,89179.0,4.989e-05]
[1764976575489,0.25786553,89180.0,89179.0,4.989e-05]
[1764976575691,0.28215553,89180.0,89179.0,4.989e-05]
[1764976576272,0.22426553,89180.0,89179.0,4.989e-05]
[1764976576532,0.24194553,89180.0,89179.0,4.989e-05]
[1764976577058,0.24194553,89180.0,89179.0,0.00104989]
[1764976577619,0.24294553,89180.0,89179.0,4.989e-05]
[1764976582959,0.24298553,89180.0,89179.0,0.03978989]
[1764976583136,0.24298553,89180.0,89179.0,0.04596131]
[1764976584653,0.001,89180.0,89179.0,0.04596131]
[1764976584855,0.001,89180.0,89179.0,0.29253832]
[1764976585055,0.001,89180.0,89179.0,0.27184222]
[1764976585669,0.001,89180.0,89179.0,0.29415119]
[1764976586261,0.01772,89189.0,89188.0,0.22424541]
[1764976586433,0.01772,89189.0,89188.0,0.34455886]
[1764976586641,0.01772,89189.0,89188.0,0.36886886]
[1764976586837,0.23543893,89196.0,89192.0,0.2354468]
[1764976587019,0.23543893,89196.0,89195.0,0.01543]
[1764976587248,0.02893126,89196.0,89195.0,0.01543]
[1764976587457,0.02893126,89196.0,89195.0,0.0975499]
[1764976587653,0.25315656,89196.0,89195.0,0.0975499]
[1764976588223,0.01772,89196.0,89195.0,0.0975499]
[1764976588545,0.2419453,89196.0,89195.0,0.0975499]
[1764976588871,0.24282598,89196.0,89195.0,0.0975499]
[1764976589740,0.24382598,89196.0,89195.0,0.0975499]
[1764976590270,0.01860068,89196.0,89195.0,0.0975499]
[1764976590397,0.01121139,89195.0,89191.0,0.22423536]
[1764976590799,0.01121139,89195.0,89191.0,0.24854536]
[1764976591149,0.01121139,89195.0,89192.0,0.02431]
[1764976591507,0.22423284,89193.0,89190.0,0.23544777]
[1764976591715,0.23544395,89194.0,89191.0,0.29777798]
[1764976591915,0.24194636,89196.0,89193.0,0.22423034]
[1764976592452,0.01772,89196.0,89193.0,0.22423034]
[1764976592652,0.02893126,89196.0,89193.0,0.24816162]
[1764976592869,0.22423535,89192.0,89191.0,0.04923247]
[1764976593062,0.22424289,89189.0,89184.0,0.03464]
[1764976593271,0.22425295,89185.0,89184.0,0.01071]
[1764976594752,0.22425295,89185.0,89184.0,0.0511]
[1764976595114,0.22425295,89185.0,89184.0,0.16080506]
[1764976596875,0.2242511,89186.0,89184.0,0.16080506]
[1764976597073,0.2242511,89186.0,89185.0,0.04039]
[1764976599314,0.23546497,89187.0,89185.0,0.04039]
[1764976599516,0.01121239,89187.0,89186.0,0.04039]
[1764976599694,0.01121239,89187.0,89186.0,0.06490971]
[1764976599898,0.23546031,89187.0,89186.0,0.06490971]
[1764976600500,0.01121239,89187.0,89186.0,0.08883971]
[1764976600705,0.224246,89188.0,89186.0,0.08883971]
[1764976600899,0.224246,89188.0,89187.0,0.01071]
[1764976601086,0.224246,89188.0,89187.0,0.09569027]
[1764976603704,0.224246,89188.0,89187.0,0.08498027]
[1764976604099,0.22425027,89187.0,89184.0,0.24617703]
[1764976604335,0.0005467,89185.0,89184.0,0.27010703]
[1764976604542,0.0005467,89185.0,89184.0,0.03464]
[1764976604746,0.22479965,89185.0,89184.0,0.0511]
[1764976604926,0.0005467,89185.0,89184.0,0.10561328]
[1764976605145,0.0005467,89185.0,89184.0,0.32986875]
[1764976606515,0.22479965,89185.0,89184.0,0.08168328]
[1764976606761,0.22479965,89185.0,89184.0,0.01071]
[1764976621676,0.22479965,89185.0,89180.0,0.01071]
[1764976621875,0.22426553,89180.0,89179.0,4.989e-05]
[1764976622077,0.24043553,89180.0,89179.0,4.989e-05]
[1764976622297,0.28571157,89180.0,89179.0,4.989e-05]
[1764976623443,0.31938914,89180.0,89179.0,4.989e-05]
[1764976626886,0.32038914,89180.0,89179.0,4.989e-05]
[1764976632539,0.2751131,89180.0,89179.0,4.989e-05]
[1764976632741,0.2589431,89180.0,89179.0,4.989e-05]
[1764976638135,0.25933796,89180.0,89179.0,4.989e-05]
[1764976638344,0.24338039,89180.0,89179.0,0.04896989]
[1764976645589,0.24338039,89180.0,89179.0,0.02605989]
[1764976645795,0.24338039,89180.0,89179.0,4.989e-05]
[1764976648731,0.22566039,89180.0,89179.0,0.03825989]
[1764976648952,0.24338039,89180.0,89179.0,0.06894944]
[1764976649111,0.24338039,89180.0,89179.0,0.03825989]
[1764976652831,0.22566039,89180.0,89179.0,0.03825989]
[1764976653036,0.24338039,89180.0,89179.0,0.03825989]
[1764976653183,0.01911486,89180.0,89179.0,0.03825989]
[1764976653368,0.01911486,89180.0,89179.0,0.07005743]
[1764976653705,0.01811486,89180.0,89179.0,0.07005743]
[1764976654668,0.01811486,89180.0,89179.0,0.29432547]
[1764976654872,0.00039486,89180.0,89179.0,0.29593834]
[1764976655070,0.00039486,89180.0,89179.0,0.31824731]
[1764976655475,0.00039486,89180.0,89179.0,0.09397927]
[1764976655822,0.22466039,89180.0,89179.0,0.09397927]
[1764976656211,0.22466039,89180.0,89179.0,0.0716703]
[1764976656627,0.22466039,89180.0,89179.0,0.0746703]
[1764976656853,0.22466039,89180.0,89179.0,0.04287276]
[1764976670240,0.00039486,89180.0,89179.0,0.2671408]
[1764976674301,0.00039486,89180.0,89179.0,0.28944977]
[1764976682211,0.00039486,89180.0,89179.0,0.61244977]
[1764976685525,0.00039486,89180.0,89179.0,0.2671408]
[1764976685744,0.22466039,89180.0,89179.0,0.01834989]
[1764976686076,0.22466039,89180.0,89179.0,0.03299308]
[1764976686278,0.22466039,89180.0,89179.0,0.00304989]
[1764976686627,0.22466039,89180.0,89179.0,0.00204989]
[1764976686851,0.26502039,89180.0,89179.0,0.00204989]
[1764976687489,0.26502039,89180.0,89179.0,4.989e-05]
[1764976691252,0.26602039,89180.0,89179.0,4.989e-05]
[1764976695132,0.27673039,89180.0,89179.0,4.989e-05]
[1764976695971,0.23637039,89180.0,89179.0,4.989e-05]
[1764976705529,0.23637039,89180.0,89179.0,0.04017989]
[1764976705744,0.25409039,89180.0,89179.0,0.04863307]
[1764976705992,0.00139486,89180.0,89179.0,0.29682295]
[1764976706571,0.00039486,89180.0,89179.0,0.07255491]
[1764976707043,0.00039486,89180.0,89179.0,0.07455491]
[1764976707262,0.00039486,89180.0,89179.0,0.29782295]
[1764976707620,0.00039486,89180.0,89179.0,0.30082295]
[1764976707830,0.00039486,89180.0,89179.0,0.29982295]
[1764976707997,0.00039486,89180.0,89179.0,0.07555491]
[1764976708213,0.00039486,89180.0,89179.0,0.07655491]
[1764976708214,0.22466039,89180.0,89179.0,0.07655491]
[1764976711529,0.22466039,89180.0,89179.0,0.05424594]
[1764976714151,0.00039486,89180.0,89179.0,0.05424594]
[1764976714331,0.00039486,89180.0,89179.0,0.30082295]
[1764976715138,0.00039486,89180.0,89179.0,0.07655491]
[1764976715345,0.00039486,89180.0,89179.0,0.30082295]
[1764976716327,0.00039486,89180.0,89179.0,0.27851398]
[1764976717144,0.00039486,89180.0,89179.0,0.30082295]
[1764976722957,0.22466039,89180.0,89179.0,0.05424594]
[1764976723712,0.22466039,89180.0,89179.0,0.03058594]
[1764976723913,0.24234039,89180.0,89179.0,0.00404989]
[1764976724427,0.28307039,89180.0,89179.0,0.00404989]
[1764976725581,0.25863039,89180.0,89179.0,0.00404989]
[1764976725785,0.25863039,89180.0,89179.0,0.00304989]
[1764976726004,0.25863039,89180.0,89179.0,4.989e-05]
[1764976726208,0.25863039,89180.0,89179.0,0.00204989]
[1764976726565,0.25863039,89180.0,89179.0,4.989e-05]
[1764976727437,0.25963039,89180.0,89179.0,4.989e-05]
[1764976729743,0.28455039,89180.0,89179.0,4.989e-05]
[1764976733200,0.30872684,89180.0,89179.0,4.989e-05]
[1764976733530,0.28455039,89180.0,89179.0,4.989e-05]
[1764976733875,0.29526039,89180.0,89179.0,4.989e-05]
[1764976736654,0.66482897,89180.0,89179.0,4.989e-05]
[1764976736850,0.83705702,89180.0,89179.0,4.989e-05]
[1764976737621,1.08135702,89180.0,89179.0,4.989e-05]
[1764976738202,1.08235702,89180.0,89179.0,4.989e-05]
[1764976738461,1.11254976,89180.0,89179.0,4.989e-05]
[1764976738628,1.11154976,89180.0,89179.0,4.989e-05]
[1764976738841,1.11054976,89180.0,89179.0,4.989e-05]
[1764976738996,0.9637647,89180.0,89179.0,4.989e-05]
[1764976739195,0.9804847,89180.0,89179.0,4.989e-05]
[1764976739449,1.0028847,89180.0,89179.0,4.989e-05]
[1764976739612,1.0068847,89180.0,89179.0,4.989e-05]
[1764976741305,0.97669196,89180.0,89179.0,4.989e-05]
[1764976743559,0.95429196,89180.0,89179.0,4.989e-05]
[1764976744833,0.95029196,89180.0,89179.0,4.989e-05]
[1764976745241,0.95329196,89180.0,89179.0,4.989e-05]
[1764976745451,0.94829196,89180.0,89179.0,4.989e-05]
[1764976745967,0.95229196,89180.0,89179.0,4.989e-05]
[1764976746333,0.95029196,89180.0,89179.0,4.989e-05]
[1764976746675,0.95129196,89180.0,89179.0,4.989e-05]
[1764976747788,0.88876897,89180.0,89179.0,4.989e-05]
[1764976749188,0.50683897,89180.0,89179.0,4.989e-05]
[1764976749495,0.50039039,89180.0,89179.0,4.989e-05]
[1764976749677,0.2242781,89175.0,89174.0,0.01050989]
[1764976749881,0.22439647,89175.0,89174.0,0.09937917]
[1764976750182,0.22463948,89175.0,89174.0,0.04854989]
[1764976751409,0.22563948,89175.0,89174.0,0.04854989]
[1764976752084,0.22763948,89175.0,89174.0,0.04854989]
[1764976752391,0.22763948,89175.0,89174.0,0.02565989]
[1764976752721,0.22763948,89175.0,89174.0,0.01050989]
[1764976754358,0.22763948,89175.0,89174.0,0.04854989]
[1764976754566,0.24535948,89175.0,89174.0,0.05784028]
[1764976755482,0.22763948,89175.0,89174.0,0.05784028]
[1764976755695,0.24535948,89175.0,89174.0,0.05784028]
[1764976757002,0.24535948,89175.0,89174.0,0.01980028]
[1764976757211,0.24535948,89175.0,89174.0,0.01050989]
[1764976758578,0.22429319,89169.0,89168.0,0.01071]
[1764976760241,0.22529319,89169.0,89168.0,0.01071]
[1764976760666,0.22629319,89169.0,89168.0,0.01071]
[1764976762826,0.002,89169.0,89168.0,0.27304571]
[1764976762954,0.002,89169.0,89168.0,0.35076736]
[1764976763835,0.002,89169.0,89168.0,0.35238023]
[1764976765484,0.002,89169.0,89168.0,0.3746892]
[1764976779803,0.001,89169.0,89168.0,0.3746892]
[1764976779978,0.001,89169.0,89168.0,0.3756892]
[1764976780585,0.00036138,89175.0,89174.0,0.22428061]
[1764976780810,0.00036138,89175.0,89174.0,0.26408245]
[1764976780984,0.00036138,89175.0,89174.0,0.28837245]
[1764976781736,0.00036138,89175.0,89174.0,0.28937245]
[1764976782168,0.00036138,89175.0,89174.0,0.29237245]
[1764976782370,0.00036138,89175.0,89174.0,0.3700941]
[1764976806658,0.00036138,89175.0,89174.0,0.34778513]
[1764976813532,0.00036138,89175.0,89174.0,0.12350452]
[1764976813741,0.00036138,89175.0,89174.0,0.27006348]
[1764976813972,0.22463948,89175.0,89174.0,0.02149287]
[1764976814178,0.22463948,89175.0,89174.0,0.004]
[1764976814642,0.22463948,89175.0,89174.0,0.003]
[1764976814978,0.23585338,89175.0,89171.0,0.0217244]
[1764976815185,0.22428313,89173.0,89172.0,0.10970506]
[1764976815383,0.23585338,89175.0,89172.0,0.33399025]
[1764976816469,0.23585338,89175.0,89173.0,0.22428218]
[1764976816603,0.00036138,89175.0,89173.0,0.22428218]
[1764976816810,0.00036138,89175.0,89174.0,0.22428061]
[1764976817046,0.00036138,89175.0,89174.0,0.31281032]
[1764976818794,0.00036138,89175.0,89174.0,0.33511929]
[1764976818962,0.00036138,89175.0,89174.0,0.31281032]
[1764976820592,0.00036138,89175.0,89174.0,0.31381032]
[1764976821040,0.00036138,89175.0,89174.0,0.31681032]
[1764976822654,0.00036138,89175.0,89174.0,0.09252971]
[1764976822858,0.00036138,89175.0,89174.0,0.04408]
[1764976823155,0.22463948,89175.0,89174.0,0.04408]
[1764976828705,0.00036138,89175.0,89174.0,0.04408]
[1764976829047,0.00036138,89175.0,89174.0,0.26836061]
[1764976829259,0.00036138,89175.0,89174.0,0.04408]
[1764976829502,0.00036138,89175.0,89174.0,0.10330535]
[1764976830318,0.00036138,89175.0,89174.0,0.32758596]
[1764976830675,0.00036138,89175.0,89174.0,0.10330535]
[1764976831525,0.22463948,89175.0,89174.0,0.10330535]
[1764976832505,0.00036138,89175.0,89174.0,0.32758596]
[1764976834215,0.00036138,89175.0,89174.0,0.3515078]
[1764976841988,0.00036138,89175.0,89174.0,0.3693878]
[1764976845366,0.00036138,89175.0,89174.0,0.34707883]
[1764976845811,0.00036138,89175.0,89174.0,0.3515078]
[1764976846948,0.00036138,89175.0,89174.0,0.32919883]
[1764976847148,0.00036138,89175.0,89174.0,0.24500348]
[1764976847374,0.00036138,89175.0,89174.0,0.22989348]
[1764976847900,0.00036138,89175.0,89174.0,0.22889348]
[1764976848298,0.00036138,89175.0,89174.0,0.26564348]
[1764976849018,0.00036138,89175.0,89174.0,0.36829488]
[1764976852499,0.00036138,89175.0,89174.0,0.39060385]
[1764976854431,0.00036138,89175.0,89174.0,0.39160385]
[1764976854641,0.00036138,89175.0,89174.0,0.39560385]
[1764976857297,0.00036138,89175.0,89174.0,0.00661287]
[1764976857653,0.22463948,89175.0,89174.0,0.00661287]
[1764976857859,0.22463948,89175.0,89174.0,0.00261287]
[1764976858256,0.22463948,89175.0,89174.0,0.00661287]
[1764976858626,0.22463948,89175.0,89174.0,0.00261287]
[1764976859011,0.22463948,89175.0,89174.0,0.00461287]
[1764976859182,0.22463948,89175.0,89174.0,0.07896905]
[1764976859352,0.22463948,89175.0,89174.0,0.07996905]
[1764976859945,0.00036138,89175.0,89174.0,0.07896905]
[1764976860272,0.00036138,89175.0,89174.0,0.07996905]
[1764976860791,0.00036138,89175.0,89174.0,0.14202802]
[1764976861001,0.00036138,89175.0,89174.0,0.14102802]
[1764976861369,0.00036138,89175.0,89174.0,0.11571905]
[1764976861568,0.00036138,89175.0,89174.0,0.00261287]
[1764976863241,0.00036138,89175.0,89174.0,0.00361287]
[1764976863649,0.00036138,89175.0,89174.0,0.00261287]
[1764976863849,0.00036138,89175.0,89174.0,0.00161287]
[1764976865423,0.00036138,89175.0,89174.0,0.09520435]
[1764976867482,0.00036138,89175.0,89174.0,0.34179393]
[1764976867896,0.22463948,89175.0,89174.0,0.05561435]
[1764976868065,0.22463948,89175.0,89174.0,0.00161287]
[1764976868641,0.22463948,89175.0,89174.0,0.00461287]
[1764976870079,0.22463948,89175.0,89174.0,0.00561287]
[1764976870291,0.22463948,89175.0,89174.0,0.004]
[1764976870498,0.26581948,89175.0,89174.0,0.004]
[1764976871345,0.27652948,89175.0,89174.0,0.004]
[1764976871644,0.27652948,89175.0,89174.0,0.001]
[1764976872411,0.2243259,89156.0,89155.0,0.01071]
[1764976872616,0.2243259,89156.0,89155.0,0.10970506]
[1764976872841,0.22433344,89153.0,89152.0,0.01071]
[1764976874107,0.22433344,89153.0,89152.0,0.01232287]
[1764976874108,0.05044514,89153.0,89152.0,0.01232287]
[1764976875216,0.01121642,89155.0,89152.0,0.28746444]
[1764976875434,0.22432386,89157.0,89154.0,0.25088956]
[1764976875633,0.03368124,89163.0,89158.0,0.22432024]
[1764976875834,0.03368124,89163.0,89159.0,0.01121591]
[1764976875835,0.02889554,89162.0,89159.0,0.01121591]
[1764976876071,0.25320782,89162.0,89159.0,0.03495591]
[1764976876286,0.01768,89162.0,89161.0,0.25087332]
[1764976876456,0.03367867,89166.0,89163.0,0.2355214]
[1764976876660,0.05135867,89166.0,89165.0,0.01585]
[1764976877437,0.25319384,89167.0,89165.0,0.03959]
[1764976877642,0.25319384,89167.0,89166.0,0.01585]
[1764976877891,0.28687186,89167.0,89166.0,0.10120633]
[1764976878396,0.26919186,89167.0,89166.0,0.10120633]
[1764976878555,0.01121491,89167.0,89166.0,0.10120633]
[1764976879305,0.03367802,89168.0,89166.0,0.10120633]
[1764976879509,0.01768,89169.0,89168.0,0.22429571]
[1764976879660,0.01768,89169.0,89168.0,0.06393873]
[1764976879869,0.01768,89169.0,89168.0,0.08767873]
[1764976880186,0.24197319,89169.0,89168.0,0.08767873]
[1764976880393,0.01768,89169.0,89168.0,0.06393873]
[1764976880789,0.01768,89169.0,89168.0,0.08767873]
[1764976880975,0.01768,89169.0,89168.0,0.06393873]
[1764976882338,0.01768,89169.0,89168.0,0.08767873]
[1764976882491,0.01768,89169.0,89168.0,0.31197444]
[1764976882875,0.01768,89169.0,89168.0,0.08767873]
[1764976883073,0.01768,89169.0,89168.0,0.31197444]
[1764976883545,0.47864956,89196.0,89171.0,0.0112144]
[1764976883546,0.23549697,89174.0,89171.0,0.0112144]
[1764976883742,0.01768,89171.0,89169.0,0.25924541]
[1764976883859,0.24196878,89171.0,89170.0,0.02374]
[1764976884087,0.01768,89171.0,89170.0,0.26388068]
[1764976884297,0.01768,89171.0,89170.0,0.12337543]
[1764976884750,0.24196816,89171.0,89170.0,0.12337543]
[1764976884959,0.01768,89171.0,89170.0,0.12337543]
[1764976885162,0.26917062,89174.0,89171.0,0.22428572]
[1764976885366,0.23549483,89174.0,89173.0,0.02656]
[1764976885816,0.23549483,89174.0,89173.0,0.0503]
[1764976888191,0.01121403,89174.0,89173.0,0.0503]
[1764976888387,0.01121403,89174.0,89173.0,0.13408358]
[1764976888630,0.25353376,89175.0,89173.0,0.35836671]
[1764976889062,0.25353376,89175.0,89173.0,0.13408358]
[1764976889467,0.02925528,89175.0,89173.0,0.13408358]
[1764976889714,0.01804138,89175.0,89174.0,0.03959]
[1764976891150,0.24231948,89175.0,89174.0,0.01585]
[1764976892401,0.01804138,89175.0,89174.0,0.01585]
[1764976892605,0.01804138,89175.0,89174.0,0.24013061]
[1764976892819,0.01804138,89175.0,89174.0,0.01585]
[1764976892968,0.01804138,89175.0,89174.0,0.32391303]
[1764976893578,0.01804138,89175.0,89174.0,0.09963242]
[1764976894705,0.01804138,89175.0,89174.0,0.32391303]
[1764976895484,0.01804138,89175.0,89174.0,0.34834303]
[1764976898464,0.01804138,89175.0,89174.0,0.12406242]
[1764976898684,0.01804138,89175.0,89174.0,0.04028]
[1764976898903,0.24231948,89175.0,89174.0,0.01585]
[1764976899503,0.01804138,89175.0,89174.0,0.04028]
[1764976900218,0.01804138,89175.0,89174.0,0.26456061]
[1764976906072,0.01804138,89175.0,89174.0,0.26556061]
[1764976906273,0.01804138,89175.0,89174.0,0.37417231]
[1764976907257,0.01804138,89175.0,89174.0,0.37717231]
[1764976908231,0.00036138,89175.0,89174.0,0.40109415]
[1764976909068,0.00036138,89175.0,89174.0,0.39809415]
[1764976909226,0.00036138,89175.0,89174.0,0.39709415]
[1764976909430,0.00036138,89175.0,89174.0,0.39909415]
[1764976910755,0.00036138,89175.0,89174.0,0.41677415]
[1764976910927,0.00036138,89175.0,89174.0,0.42077415]
[1764976915864,0.00036138,89175.0,89174.0,0.39846518]
[1764976916068,0.00036138,89175.0,89174.0,0.38078518]
[1764976916891,0.00036138,89175.0,89174.0,0.15650457]
[1764976917092,0.22463948,89175.0,89174.0,0.15650457]
[1764976917299,0.22463948,89175.0,89174.0,0.38078518]
[1764976917300,0.00036138,89175.0,89174.0,0.38078518]
[1764976917459,0.00036138,89175.0,89174.0,0.1304617]
[1764976917665,0.22463948,89175.0,89174.0,0.006]
[1764976917861,0.00036138,89175.0,89174.0,0.006]
[1764976918177,0.22463948,89175.0,89174.0,0.006]
[1764976918599,0.22463948,89175.0,89174.0,0.004]
[1764976918805,0.22463948,89175.0,89173.0,0.01071]
[1764976919000,0.22463948,89175.0,89174.0,0.07724446]
[1764976919180,0.22463948,89175.0,89174.0,0.08024446]
[1764976919590,0.22463948,89175.0,89174.0,0.07924446]
[1764976920427,0.00036138,89175.0,89174.0,0.09524446]
[1764976920659,0.22463948,89175.0,89174.0,0.09524446]
[1764976920827,0.22463948,89175.0,89174.0,0.09624446]
[1764976924019,0.00036138,89175.0,89174.0,0.12060446]
[1764976924173,0.00036138,89175.0,89174.0,0.36719404]
[1764976929846,0.00036138,89175.0,89174.0,0.36880691]
[1764976934118,0.00036138,89175.0,89174.0,0.36580691]
[1764976934329,0.00036138,89175.0,89174.0,0.36980691]
[1764976934534,0.00036138,89175.0,89174.0,0.36880691]
[1764976934911,0.00036138,89175.0,89174.0,0.37080691]
[1764976940829,0.00036138,89175.0,89174.0,0.1465263]
[1764976941047,0.00036138,89175.0,89174.0,0.37080691]
[1764976941414,0.00036138,89175.0,89174.0,0.1465263]
[1764976941634,0.00036138,89175.0,89174.0,0.37080691]
[1764976943238,0.00036138,89175.0,89174.0,0.1465263]
[1764976943663,0.00036138,89175.0,89174.0,0.37080691]
[1764976943871,0.00036138,89175.0,89174.0,0.1465263]
[1764976944129,0.22463948,89175.0,89174.0,0.1465263]
[1764976944404,0.22463948,89175.0,89174.0,0.07028184]
[1764976947250,0.22463948,89175.0,89174.0,0.04797287]
[1764976948739,0.22463948,89175.0,89174.0,0.006]
[1764976949138,0.26469948,89175.0,89174.0,0.006]
[1764976949953,0.58769948,89175.0,89174.0,0.006]
[1764976950238,0.61185213,89175.0,89174.0,0.002]
[1764976950442,0.74395719,89175.0,89174.0,0.003]
[1764976950616,0.75466719,89175.0,89174.0,0.003]
[1764976950819,0.67515783,89175.0,89174.0,0.002]
[1764976951076,0.64696213,89175.0,89174.0,0.002]
[1764976951281,0.22434529,89149.0,89146.0,0.2355679]
[1764976951455,0.22434529,89149.0,89146.0,0.23718077]
[1764976951685,0.22434529,89149.0,89146.0,0.26154077]
[1764976951897,0.22434529,89149.0,89146.0,0.23718077]
[1764976952097,0.22434529,89149.0,89147.0,0.02436]
[1764976952301,0.22434529,89149.0,89148.0,0.09367242]
[1764976952513,0.22433868,89151.0,89148.0,0.09528529]
[1764976952723,0.22433868,89151.0,89150.0,0.02230897]
[1764976952928,0.22433868,89151.0,89150.0,0.02392184]
[1764976953140,0.22433868,89151.0,89150.0,0.12616908]
[1764976954320,0.23555276,89152.0,89151.0,0.02230897]
[1764976954522,0.23555276,89152.0,89151.0,0.06055897]
[1764976955136,0.01121679,89152.0,89151.0,0.06055897]
[1764976955342,0.23554812,89154.0,89153.0,0.02230897]
[1764976955535,0.23554812,89154.0,89153.0,0.1318565]
[1764976955755,0.23554812,89154.0,89153.0,0.1547165]
[1764976956625,0.01768,89156.0,89153.0,0.1350204]
[1764976956824,0.01768,89156.0,89155.0,0.0261]
[1764976957229,0.2420059,89156.0,89155.0,0.04896]
[1764976957888,0.01768,89156.0,89155.0,0.04896]
[1764976958773,0.01768,89156.0,89155.0,0.27328841]
[1764976959211,0.01768,89156.0,89155.0,0.04896]
[1764976959384,0.01768,89156.0,89155.0,0.13120813]
[1764976959955,0.01768,89156.0,89155.0,0.35553654]
[1764976960102,0.01768,89156.0,89155.0,0.35653654]
[1764976960720,0.01768,89156.0,89155.0,0.35814941]
[1764976962155,0.01768,89156.0,89155.0,0.38045838]
[1764976962461,0.23553112,89161.0,89160.0,0.02230897]
[1764976962661,0.23553112,89161.0,89160.0,0.07690664]
[1764976963542,0.23552898,89161.0,89160.0,0.07690664]
[1764976963923,0.23552898,89161.0,89160.0,0.03925]
[1764976964315,0.23552898,89161.0,89160.0,0.04025]
[1764976966105,0.01121491,89167.0,89163.0,0.01121541]
[1764976966269,0.24669124,89166.0,89165.0,0.02230897]
[1764976966468,0.24198086,89166.0,89165.0,0.05335051]
[1764976966618,0.24198086,89166.0,89165.0,0.03104154]
[1764976968077,0.24398086,89166.0,89165.0,0.03104154]
[1764976969349,0.24398086,89166.0,89165.0,0.04620154]
[1764976971178,0.24398086,89166.0,89165.0,0.03104154]
[1764976971488,0.2243108,89162.0,89161.0,0.01071]
[1764976973652,0.2243108,89162.0,89161.0,0.01171]
[1764976974163,0.2243108,89162.0,89161.0,0.01271]
[1764976975089,0.2243108,89162.0,89161.0,0.002]
[1764976977064,0.2642708,89162.0,89161.0,0.002]
[1764976980662,0.2243108,89162.0,89161.0,0.002]
[1764976981303,0.2243108,89162.0,89161.0,0.02906855]
[1764976981752,0.23550445,89171.0,89168.0,0.01121478]
[1764976981958,0.25318445,89171.0,89170.0,0.02230897]
[1764976982104,0.25318256,89171.0,89170.0,0.02230897]
[1764976982309,0.25318256,89171.0,89170.0,0.06119897]
[1764976983133,0.01768,89171.0,89170.0,0.13897332]
[1764976983312,0.00036138,89175.0,89172.0,0.25780886]
[1764976983313,0.22464171,89175.0,89172.0,0.25780886]
[1764976983667,0.00036138,89175.0,89174.0,0.24045061]
[1764976983813,0.00036138,89175.0,89174.0,0.24206348]
[1764976984012,0.00036138,89175.0,89174.0,0.36865287]
[1764976984599,0.00336138,89175.0,89174.0,0.14437226]
[1764976984809,0.00136138,89175.0,89174.0,0.14437226]
[1764976985011,0.00036138,89175.0,89174.0,0.14437226]
[1764976985416,0.00036138,89175.0,89174.0,0.14637226]
[1764976985857,0.22463948,89175.0,89174.0,0.14637226]
[1764976986036,0.22463948,89175.0,89174.0,0.06599184]
[1764976986254,0.22463948,89175.0,89174.0,0.06799184]
[1764976986778,0.22463948,89175.0,89174.0,0.04568287]
[1764976987276,0.22463948,89175.0,89174.0,0.004]
[1764976987511,0.26591948,89175.0,89174.0,0.004]
[1764976987917,0.26591948,89175.0,89174.0,0.002]
[1764976988090,0.22430074,89166.0,89165.0,0.01061]
[1764976988289,0.22430074,89166.0,89165.0,0.07824752]
[1764976988723,0.22430074,89166.0,89165.0,0.09441752]
[1764976990045,0.22430074,89166.0,89165.0,0.09641752]
[1764976990846,0.22430074,89166.0,89165.0,0.09741752]
[1764976991281,0.22430074,89166.0,89165.0,0.02978]
[1764976993829,0.22430074,89166.0,89165.0,0.05368]
[1764976995257,0.22430074,89166.0,89165.0,0.003]
[1764976995258,0.24081074,89166.0,89165.0,0.003]
[1764976995461,0.22430074,89166.0,89165.0,0.003]
[1764976996447,0.22430074,89166.0,89165.0,0.02930946]
[1764976997001,0.22430074,89166.0,89165.0,0.02830946]
[1764976997208,0.22430074,89166.0,89165.0,0.02930946]
[1764977001149,0.23550749,89171.0,89168.0,0.22429355]
[1764977001366,0.23550482,89173.0,89170.0,0.25112031]
[1764977001565,0.23549728,89173.0,89172.0,0.01617]
[1764977003162,0.23749728,89173.0,89172.0,0.01617]
[1764977003372,0.23749728,89173.0,89172.0,0.09444282]
[1764977008047,0.002,89173.0,89172.0,0.09444282]
[1764977008254,0.002,89173.0,89172.0,0.04007]
[1764977008753,0.22628313,89173.0,89172.0,0.01617]
[1764977017551,0.22428816,89171.0,89170.0,0.01066]